Cogmind - Beta 10.2 @@@ ROGUE MODE // 2020.11.07 @ 20:34:07 Player: EarthNine Result: Destroyed by P-60 Hacker with Shock Rifle Performance ------------- Evolutions (3) 1500 Regions Visited (6) 1200 Robots Destroyed (6) 30 Value Destroyed (232) 232 Prototype IDs (5) 100 Alien Tech Used (0) 0 Bonus (27) 27 TOTAL SCORE: 3089 Bonus ------- Follower Combat Kills 27 Cogmind --------- Core Integrity 0/700 Matter 221/300 Energy 99/100 System Corruption 4% Temperature Cool (0) Movement Core (50) Location -7/Factory Parts ------- > --- POWER (3) -------- (None) > --- PROPULSION (4) --- (None) > --- UTILITY (4) ------ Advanced Signal Interpreter > --- WEAPON (2) ------- (None) > --- INVENTORY (4) ---- Cooling System Enhanced Optical Array ECM Suite Power Shielding Peak State ------------ > --- POWER ------------ Light Ion Engine Light Nuclear Core Micro Nuclear Core > --- PROPULSION ------- Flight Unit Flight Unit Flight Unit Cesium-ion Thruster > --- UTILITY ---------- Weight Redist. System Experimental Sensor Array Advanced Signal Interpreter Hacking Suite > --- WEAPON ----------- Improved Datajack Powered Hammer > --- INVENTORY -------- ECM Suite Power Shielding Hacking Suite Assault Cannon [Rating: 35] Favorites ----------- Power Light Nuclear Core Engine Light Ion Engine Power Core Light Nuclear Core Propulsion Flight Unit Leg Aluminum Leg Wheel Armored Wheel Flight Unit Flight Unit Utility Hacking Suite Device Weight Redist. System Processor Advanced Signal Interpreter Hackware Hacking Suite Protection Power Shielding Weapon Datajack Energy Gun EM Pulse Gun Ballistic Cannon Light Cannon Launcher Rocket Launcher Special Weapon Welding Torch Impact Weapon Powered Hammer Special Melee Weapon Datajack Build | -11 -10 -10 -9 -9 -8 -7 ------- Run | Scr Mat Min Mat Min Mat Fac Slots Evolved 6 | . . . 2 . 2 2 Power 2 | . . . . . 1 1 Propulsion 2 | . . . 1 . 1 . Utility 2 | . . . 1 . . 1 Weapon . | . . . . . . . Parts Attached 70 | 7 11 7 15 2 9 19 Power 14 | 1 1 . 3 . 4 5 Engine 10 | 1 . . 3 . 4 2 Core 4 | . 1 . . . . 3 Reactor . | . . . . . . . Propulsion 15 | 2 5 2 1 . 3 2 Treads . | . . . . . . . Leg 7 | 2 5 . . . . . Wheel 1 | . . . . . 1 . Hover . | . . . . . . . Flight 7 | . . 2 1 . 2 2 Utility 18 | 1 2 1 4 2 1 7 Device 10 | 1 2 1 1 1 1 3 Storage . | . . . . . . . Processor 2 | . . . . . . 2 Hackware 1 | . . . 1 . . . Protection 5 | . . . 2 1 . 2 Artifact . | . . . . . . . Weapon 23 | 3 3 4 7 . 1 5 Energy Gun 10 | 3 2 1 3 . . 1 Energy Cannon . | . . . . . . . Ballistic Gun . | . . . . . . . Ballistic Cannon 6 | . 1 2 1 . 1 1 Launcher 1 | . . 1 . . . . Special Weapon 2 | . . . 2 . . . Impact Weapon 1 | . . . . . . 1 Slashing Weapon . | . . . . . . . Piercing Weapon . | . . . . . . . Special Melee Weapon 3 | . . . 1 . . 2 Unidentified Prototypes 3 | . . . 2 1 . . Parts Lost 15 | . 1 . . . 1 13 Power 3 | . . . . . . 3 Propulsion 4 | . . . . . . 4 Utility 3 | . . . . . . 3 Weapon 5 | . 1 . . . 1 3 Highest Loss Streak 5 | . 1 . . . 1 5 Average Slot Usage (%) 89 | . 96 86 96 100 98 77 Engine 9 | . 7 . 10 11 18 9 Core 4 | . 6 14 . . . 5 Leg 6 | . 27 15 . . . . Flight 20 | . . 12 33 33 28 21 Device 18 | . 25 28 19 11 18 11 Processor 1 | . . . . . . 5 Hackware 4 | . . . 7 11 9 4 Protection 2 | . . . 5 11 . 1 Energy Gun 4 | . 22 2 . . . . Ballistic Cannon 2 | . 5 7 . . . 1 Special Weapon 3 | . . . 10 11 7 . Impact Weapon 1 | . . . . . . 3 Special Melee Weapon 5 | . . . 7 11 9 6 Naked Turns . | . . . . . . . Heaviest Build 21 | 6 12 14 15 12 21 20 Greatest Support 24 | 20 20 20 18 12 24 24 Greatest Overweight (x) 3 | . 1 . 3 . . 1 Average Overweight (x) . | . . . . . . . Largest Inventory Capacity 4 | 4 4 4 4 4 4 4 Average Capacity 4 | 4 4 4 4 4 4 4 Most Carried 4 | 4 4 4 4 4 4 4 Average Carried 3 | 2 3 3 3 3 3 3 Final Capacity 4 | 4 4 4 4 4 4 4 Final Carried 4 | 4 4 3 4 4 4 4 Class Distribution -------------------- 75% | Mutant 22% | Sprinter Dominant Class ---------------- Mutant | -10/Materials Mutant | -10/Mines Mutant | -9/Materials Mutant | -9/Mines Mutant | -8/Materials Sprinter | -7/Factory Resources | -11 -10 -10 -9 -9 -8 -7 ----------- Run | Scr Mat Min Mat Min Mat Fac Matter Collected 616 | 260 95 60 13 19 19 150 Remotely . | . . . . . . . Salvage Created 267 | 48 206 . 13 . . . Parts 12 | 2 7 . 3 . . . Haulers Intercepted . | . . . . . . . Recyclers Shooed . | . . . . . . . Parts Field Recycled . | . . . . . . . Retrieved Matter . | . . . . . . . Parts Self-Destructed . | . . . . . . . Prevented . | . . . . . . . Kills | -11 -10 -10 -9 -9 -8 -7 ------- Run | Scr Mat Min Mat Min Mat Fac Combat Hostiles Destroyed 5 | 1 4 . . . . . Guns 5 | 1 4 . . . . . Classes Destroyed 2 | 1 . . 1 . . . Operator 1 | . . . 1 . . . Grunt 5 | 1 4 . . . . . Best Kill Streak 2 | 1 2 . 1 . . . Combat Bots Only 2 | 1 2 . . . . . Max Kills in Single Turn 1 | 1 1 . 1 . . . Gunslinging . | . . . . . . . Exploded . | . . . . . . . Melee . | . . . . . . . Uniques/NPCs Destroyed . | . . . . . . . Combat | -11 -10 -10 -9 -9 -8 -7 -------- Run | Scr Mat Min Mat Min Mat Fac Damage Taken 1721 | 22 263 . 18 . 73 1345 Core 761 | . 24 . 18 . 12 707 Absorbed by Shields . | . . . . . . . Core Remaining (%) 95 | 100 . 90 . 95 97 . Volleys Fired 23 | 4 17 . 2 . . . Largest 2 | 2 2 . 1 . . . Hottest 90 | 80 90 . 56 . . . Shots Fired 44 | 8 34 . 2 . . . Gun 44 | 8 34 . 2 . . . Cannon . | . . . . . . . Launcher . | . . . . . . . Special . | . . . . . . . Kinetic . | . . . . . . . Thermal 30 | 8 20 . 2 . . . Explosive . | . . . . . . . Electromagnetic 14 | . 14 . . . . . Robot Hit Streak 16 | 3 16 . 1 . . . Robot Miss Streak 2 | 2 2 . 1 . . . Penetration Max . | . . . . . . . Secondary Targets . | . . . . . . . Shots Hit Robots 43 | 4 26 . 10 . 1 2 Core Hits 13 | 2 10 . 1 . . . Critical Hits . | . . . . . . . Critical Kills . | . . . . . . . Critical Parts Destroyed . | . . . . . . . Melee Attacks 15 | . . . 11 . 2 2 Impact . | . . . . . . . Slashing . | . . . . . . . Piercing . | . . . . . . . Sneak Attacks 6 | . . . 5 . . 1 Combat Hostiles . | . . . . . . . Follow-up Attacks . | . . . . . . . Damage Inflicted 433 | 56 302 . 17 . . 58 Guns 375 | 56 302 . 17 . . . Cannons . | . . . . . . . Explosions . | . . . . . . . Melee . | . . . . . . . Ramming 58 | . . . . . . 58 Kinetic . | . . . . . . . Thermal 245 | 56 172 . 17 . . . Explosive . | . . . . . . . Electromagnetic 130 | . 130 . . . . . Impact . | . . . . . . . Slashing . | . . . . . . . Piercing . | . . . . . . . Highest Corruption 4 | . . . . . . 4 Average Corruption 1 | . . . . . . 1 Corruption Purged . | . . . . . . . Effects 2 | . . . . . . 2 Matter Fused 1 | . . . . . . 1 Data Loss (minor) 1 | . . . . . . 1 Overload Shots . | . . . . . . . Overflow Damage . | . . . . . . . Projectiles . | . . . . . . . Explosions . | . . . . . . . Melee . | . . . . . . . Knockbacks . | . . . . . . . Impact . | . . . . . . . Kinetic . | . . . . . . . Secondary . | . . . . . . . Self-Inflicted Damage 26 | . . . . . . 26 Shots . | . . . . . . . Rammed 14 | . . . . . . 14 Targets Rammed 14 | . . . . . . 14 Kicked . | . . . . . . . Crushed . | . . . . . . . Highest Temperature 84 | 84 8 . 18 . 13 59 Average Temperature 15 | 46 4 . 13 . 4 14 Received Heat Transfer 372 | 12 156 . 6 . 36 162 Siege Activations . | . . . . . . . Robots Corrupted . | . . . . . . . Combat Hostiles . | . . . . . . . Parts Fried 1 | . 1 . . . . . Impact Corruptions . | . . . . . . . Robots Melted . | . . . . . . . Combat Hostiles . | . . . . . . . Parts Melted . | . . . . . . . Heat Transferred 597 | 125 435 . 37 . . . Parts Sabotaged . | . . . . . . . Parts Stolen . | . . . . . . . Parts Stripped . | . . . . . . . Power Chain Reactions . | . . . . . . . Missiles Intercepted . | . . . . . . . Alert | -11 -10 -10 -9 -9 -8 -7 ------- Run | Scr Mat Min Mat Min Mat Fac Peak Influence 264 | 20 189 20 75 28 183 264 Initial 82 | . 13 5 7 28 10 82 Average 56 | 3 68 11 29 28 72 88 Maximum Alert Level 1 | . . . . . . 1 Low Security (%) 97 | 100 100 100 100 100 100 91 Level 1 2 | . . . . . . 8 Level 2 . | . . . . . . . Level 3 . | . . . . . . . Level 4 . | . . . . . . . Level 5 . | . . . . . . . High Security . | . . . . . . . Max Security . | . . . . . . . Squads Dispatched 6 | . 1 . . . 2 3 Investigation . | . . . . . . . Extermination 1 | . . . . . . 1 Reinforcement 5 | . 1 . . . 2 2 Assault . | . . . . . . . Garrison . | . . . . . . . Intercept . | . . . . . . . Construction Impeded . | . . . . . . . Haulers Reinforced . | . . . . . . . Stealth | -11 -10 -10 -9 -9 -8 -7 --------- Run | Scr Mat Min Mat Min Mat Fac Distress Signals 1 | . 1 . . . . . Communications Jammed . | . . . . . . . Distress Signals . | . . . . . . . Times Spotted 68 | 1 13 1 13 . 12 28 Peak Tracking Total 10 | 1 3 2 6 . 7 10 Tactical Retreats 14 | . 1 1 . . 1 11 Traps | -11 -10 -10 -9 -9 -8 -7 ------- Run | Scr Mat Min Mat Min Mat Fac Traps Triggered 3 | . . . . . . 3 Indirectly . | . . . . . . . Trap Hack Attempts . | . . . . . . . Triggered . | . . . . . . . Disarmed . | . . . . . . . Reprogrammed 6 | . . . 6 . . . Reused . | . . . . . . . Traps Extracted . | . . . . . . . Installed . | . . . . . . . Triggered . | . . . . . . . Machines | -11 -10 -10 -9 -9 -8 -7 ---------- Run | Scr Mat Min Mat Min Mat Fac Machines Disabled 2 | . . . . . 2 . Max in Single Turn . | . . . . . . . Machines Sabotaged . | . . . . . . . Garrisons Compromised . | . . . . . . . Overloaded Fab Kills . | . . . . . . . Fab Network Shutdowns . | . . . . . . . Hacking | -11 -10 -10 -9 -9 -8 -7 --------- Run | Scr Mat Min Mat Min Mat Fac Machines Accessed 16 | . 2 . 7 . 5 2 Terminals 12 | . 1 . 5 . 4 2 Fabricators . | . . . . . . . Repair Stations . | . . . . . . . Recycling Units 4 | . 1 . 2 . 1 . Scanalyzers . | . . . . . . . Garrison Access . | . . . . . . . Total Hacks 47 | . 9 . 18 . 17 3 Successful 32 | . 7 . 15 . 9 1 Failed 15 | . 2 . 3 . 8 2 Catastrophic . | . . . . . . . Database Lockouts . | . . . . . . . Manual . | . . . . . . . Terminals 35 | . 6 . 14 . 12 3 Fabricators . | . . . . . . . Repair Stations . | . . . . . . . Recycling Units 12 | . 3 . 4 . 5 . Scanalyzers . | . . . . . . . Garrison Access . | . . . . . . . Terminal Hacks 24 | . 6 . 11 . 6 1 Record 9 | . 2 . 5 . 2 . Prototype ID Bank 1 | . . . . . 1 . Emergency Access Points 1 | . 1 . . . . . Terminal Index 1 | . . . . . 1 . Alert Level 2 | . 1 . 1 . . . Locate Traps 1 | . . . 1 . . . Reprogram Traps 1 | . . . 1 . . . Dispatch Records 1 | . . . 1 . . . Investigation Status 1 | . . . 1 . . . Assault Status 1 | . . . 1 . . . Hauler Manifests 1 | . 1 . . . . . Registered Components 1 | . . . . . 1 . Zone Layout 3 | . 1 . . . 1 1 Fabricator Hacks . | . . . . . . . Repair Station Hacks . | . . . . . . . Recycling Unit Hacks 8 | . 1 . 4 . 3 . Recycle Component 1 | . . . 1 . . . Process 1 | . . . . . 1 . Report Inventory 4 | . 1 . 2 . 1 . Retrieve Matter 1 | . . . . . 1 . Retrieve Components 1 | . . . 1 . . . Scanalyzer . | . . . . . . . Garrison Access Hacks . | . . . . . . . Unauthorized Hacks . | . . . . . . . Terminals . | . . . . . . . Fabricators . | . . . . . . . Repair Stations . | . . . . . . . Recycling Units . | . . . . . . . Scanalyzers . | . . . . . . . Garrison Access . | . . . . . . . Data Cores Recovered 1 | . . . 1 . . . Used . | . . . . . . . Hacking Detections 12 | . 2 . 6 . 2 2 Full Trace Events . | . . . . . . . Feedback Events . | . . . . . . . Feedback Blocked . | . . . . . . . Robot Schematics Acquired . | . . . . . . . Robots Built . | . . . . . . . Matter . | . . . . . . . Time . | . . . . . . . Total Robot Build Rating . | . . . . . . . Part Schematics Acquired . | . . . . . . . Parts Built . | . . . . . . . Matter . | . . . . . . . Time . | . . . . . . . Total Part Build Rating . | . . . . . . . Parts Repaired . | . . . . . . . Time . | . . . . . . . Parts Recycled 1 | . . . 1 . . . Recycled Matter 89 | . . . . . 89 . Retrieved Matter 89 | . . . . . 89 . Retrieved Components 2 | . . . 2 . . . Parts Scanalyzed . | . . . . . . . Part Schematics Acquired . | . . . . . . . Parts Damaged . | . . . . . . . Bothacking | -11 -10 -10 -9 -9 -8 -7 ------------ Run | Scr Mat Min Mat Min Mat Fac Used RIF Installer . | . . . . . . . Robots Hacked 6 | . . . 3 . 1 2 Non-combat 4 | . . . 3 . 1 . Combat 2 | . . . . . . 2 Robot Hacks Applied 9 | . . . 6 . 1 2 parse_system 7 | . . . 5 . . 2 no_distress 1 | . . . 1 . . . check_alert 1 | . . . . . 1 . Relay Couplers Released . | . . . . . . . Robots Rewired . | . . . . . . . Allies Hacked . | . . . . . . . Hacks Repelled . | . . . . . . . Allies | -11 -10 -10 -9 -9 -8 -7 -------- Run | Scr Mat Min Mat Min Mat Fac Total Allies 2 | . . . . 2 . . Largest Group 2 | . . . . 2 2 . Highest-Rated Group 36 | . . . . 36 36 . Highest-Rated Ally 31 | . . . . 31 31 . Total Orders . | . . . . . . . Ally Attacks 8 | . . . . . 8 . Total Damage 124 | . . . . . 124 . Kills 2 | . . . . . 2 . Allies Corrupted . | . . . . . . . Allies Melted . | . . . . . . . Intel | -11 -10 -10 -9 -9 -8 -7 ------- Run | Scr Mat Min Mat Min Mat Fac Robot Analysis Total . | . . . . . . . Derelict Logs Recovered 1 | . . 1 . . . . Drone Launches . | . . . . . . . Drone Recoveries . | . . . . . . . Exploration | -11 -10 -10 -9 -9 -8 -7 ------------- Run | Scr Mat Min Mat Min Mat Fac Turns Passed 3118 | 93 521 341 624 194 325 1020 Spaces Moved 3241 | 66 279 282 444 345 417 1408 Core 306 | 21 . . . . . 285 Treads . | . . . . . . . Legs 466 | 45 279 142 . . . . Wheels . | . . . . . . . Hover . | . . . . . . . Flight 2469 | . . 140 444 345 417 1123 Fastest Speed 31 | 50 120 37 34 34 31 31 Average Speed 48 | 97 120 78 34 34 35 38 Slowest Speed 280 | 120 150 120 280 34 39 120 Overloaded Moves . | . . . . . . . Propulsion Burnouts . | . . . . . . . Robots Hopped 4 | . . . 2 . . 2 Cave-ins Triggered . | . . . . . . . Exploration Rate (%) 34 | 6 31 46 32 53 32 41 Regions Visited 6 Branch Regions 2 Pre-discovered Areas 1 | . . . . 1 . . Known Exits Taken . | . . . . . . . Unknown Exits Taken 6 | 1 1 1 1 1 1 . Scrap Searched 3 | . . 2 . 1 . . Spaces Dug . | . . . . . . . Terrain Destroyed . | . . . . . . . Melee . | . . . . . . . Projectile . | . . . . . . . AOE . | . . . . . . . Terrain Rammed . | . . . . . . . Walls Destroyed . | . . . . . . . Machines Disabled . | . . . . . . . Actions | -11 -10 -10 -9 -9 -8 -7 --------- Run | Scr Mat Min Mat Min Mat Fac Total 4725 | 85 432 402 901 422 593 1890 Wait 1256 | . 107 104 408 70 156 411 Move 3227 | 65 278 281 439 344 416 1404 Hop 4 | . . . 2 . . 2 Pick Up 37 | 9 5 1 10 3 3 6 Fast Attach 37 | 1 11 5 6 . 5 9 Attach 29 | 5 . 2 8 1 4 9 Detach 11 | . . . 4 . 2 5 Swap 4 | 1 . . 1 1 . 1 Drop 50 | . 14 9 10 3 5 9 Fire 23 | 4 17 . 2 . . . Melee 15 | . . . 11 . 2 2 Ram 14 | . . . . . . 14 Kick . | . . . . . . . Crush . | . . . . . . . Escape Stasis 18 | . . . . . . 18 Rewire . | . . . . . . . Trap . | . . . . . . . Miscellaneous . | . . . . . . . Route ------- -11/Scrapyard -10/Materials -10/Mines -9/Materials -9/Mines (discovered 2 exits: *Mat x2) -8/Materials -7/Factory (discovered 2 exits: [*Fac] / [*Low]) History --------- Turn | Location | Event 2 | -11/Scrapyard | Met Revision 17 65 | -11/Scrapyard | Discovered new exit (range 8) 94 | -11/Scrapyard | Entered Materials 302 | -10/Materials | Build established: Mutant 607 | -10/Materials | Discovered new exit (range 6) 615 | -10/Materials | Entered Mines 618 | -10/Mines | Learned Materials stockpile data 651 | -10/Mines | Received a Rocket Launcher from a helpful Derelict 699 | -10/Mines | Discovered new exit (range 5) 956 | -10/Mines | Entered Materials 956 | -9/Materials | Evolved 2 slots: Propulsion x1, Utility x1 1572 | -9/Materials | Discovered new exit (range 11) 1580 | -9/Materials | Entered Mines 1598 | -9/Mines | Found a damaged Exp. Sensor Array with a note attached 1599 | -9/Mines | Found Prototype Device 1600 | -9/Mines | Identified Exp. Sensor Array 1656 | -9/Mines | Discovered new exit (range 6) 1694 | -9/Mines | Learned location of Storage (-7) 1710 | -9/Mines | Discovered new exit (range 15) 1774 | -9/Mines | Entered Materials 1774 | -8/Materials | Accompanied by 2 allies 1774 | -8/Materials | Evolved 2 slots: Power x1, Propulsion x1 1779 | -8/Materials | Led the pair of lost Derelicts to an unsafe place 2073 | -8/Materials | Discovered new exit (range 10) 2099 | -8/Materials | Entered Factory 2099 | -7/Factory | Evolved 2 slots: Power x1, Utility x1 2346 | -7/Factory | Build established: Sprinter 2741 | -7/Factory | Discovered new exit (range 12) 2792 | -7/Factory | Lost 3 parts (1p1n1u) 2840 | -7/Factory | Lost 5 parts (1p2n1u1w) 2863 | -7/Factory | Discovered new exit (range 15) 2996 | -7/Factory | Core integrity fell below 50% 3045 | -7/Factory | Build established: Mutant 3083 | -7/Factory | Core integrity fell below 20% 3119 | -7/Factory | Destroyed by P-60 Hacker with Shock Rifle Last Messages --------------- 02968_ System corrupted: Component data lost. 02981_ Slammed into S-27 Virus. 02983_ Slammed into P-60 Hacker. 02988_ Weight Redist. System destroyed. 03008_ Assault Cannon destroyed. 03033_ Slammed into T-07 Excavator. 03039_ K-01 Serf cleans the Pressure Siphon. 03052_ Slammed into K-01 Serf. 03054_ Slammed into U-05 Engineer. 03061_ Slammed into K-01 Serf. 03062_ Slammed into U-05 Engineer. 03063_ Slammed into A-02 Transporter. 03068_ K-01 Serf cleans the Pressure Siphon. 03091_ System corrupted: Matter fused (-9). 03095_ K-01 Serf cleans the Nuclear Reactor. 03103_ Slammed into P-60 Hacker. 03103_ Destabilizing: Core damaged (-7). 03103_ Assembly Bed disabled. 03104_ Imp. Datajack destroyed. 03106_ K-01 Serf cleans the Nuclear Reactor. Map ----- +----------------------------------------------------+ | | | | | | | | | | | ?????????????????????????????????????????????????? | | ?????????????????????????????????????????????????? | | ?????????????????????????????????????????????????? | | ?????????????????????????????????????????????????? | | ?????????#######?????????????????????????????????? | | ?????????# ?????????????????????????????????? | | ?????????# "??????#??????????????????????????? | | ?????????# ""???" #??????????????????????????? | | ?????????# """""" #??????????????????????????? | | ?????????#[ """""" #??????????????????????????? | | ?????????# #??????????????????????????? | | ?????????# """ #??????????????????????????? | | ?????????# ! """ #??????????????????????????? | | ?????????# """ #??????????????????????????? | | ########?# ! ! #??????????????????????????? | | #?# #??????????????????????????? | | #?# ! #??????????????????????????? | | """" #?##+##+#+######??????????????????????????? | | """" #??# #?????????????????????????????? | | """" #??# p ########+######???????????????? | | """ #??# "" @ +?????????????? | | """" #??# "G ########+######???????????????? | | """" #??# ^"" #?????????????????????????????? | | #??# #?????????????????????????????? | | ###+####### [[[ ###???????????????????????????? | | [[[ #??????????????????????? | | [[[ #??????????????????????? | | "" ???????????????????????? | | " """ """ !! ???????????????????????? | | "F """ """ !! ???????????????????????? | | "" """ """ ######### ????????????????????????? | | #???????? ????????????????????????? | | [[ #?????????? ?????????????????????????? | | [[ #????????????????????????????????????? | | [ #????????????????????????????????????? | | #????????????????????????????????????? | | #????????????????????????????????????? | | ####+## #??????##########????????????????????? | | # ######## ! #????????????????????? | | """ # = # #????????????????????? | | """ + # """" #????????????????????? | | """ # "" / """" #????????????????????? | | # F" # """" #????????????????????? | | ! [# " # """" #????????????????????? | | ##### "" # """" #????????????????????? | +----------------------------------------------------+ Best States ------------- Heat Dissipation 49 Energy Generation 29 Energy Capacity 445 Matter Stores 300 Matter Capacity 300 Sight Range 16 Robot Scan Range 30 Terrain Scan Density 10 ECM Strength 1 Additional Mass Support 6 Power Shielding 33 Evasion (%) 63 Offensive Hacking 10 Item Schematics ----------------- None Robot Schematics ------------------ None Fabricated ------------ Nothing Alien Tech Used ----------------- None Achievements -------------- Crack Shot I Spy Novice Programmer Shopping List Uninvited Guest Challenges ------------ None Game ------ Seed PlasmaPoweredRecalibrator Manual? 0 Play Time 01:15:06 Cumulative 3.4 hours Start 2020.11.07 @ 19:16:45 End 2020.11.07 @ 20:34:07 Sessions 1 Manual Loads 0 Difficulty Rogue Special Mode None Game No. 3 Rogue 3 Adventurer 0 Explorer 0 Win Type - Total 0 Types 0/0/0/0/0/0/0/0/0 Lore% 2 Gallery% 7 Achievement% 5 Wizard Run 0 Options --------- ASCII 1 Keyboard 0 Movement Mouse Keybinds 0 Fullscreen 2 Font 18/X11 Map View 76x50 Tactical HUD 1 Map Filters NONE Filters NONE Steam 0 RUN: 91e7070c-0911-4865-8d20-b2bdd33003d8